bitfinex/quotes_SOLUSD_20250823
["timestamp","ask_amount","ask_price","bid_price","bid_amount"]
[1755910873214,1.18463297,198.64,198.63,3.70733486]
[1755910873389,1.18463297,198.65,198.63,7.3622389]
[1755910873589,1.18463297,198.65,198.64,3.65490404]
[1755910873795,1.90463297,198.64,198.63,3.65490404]
[1755910874024,1.90463297,198.64,198.63,7.36166296]
[1755910874205,1.90463297,198.64,198.63,3.65490404]
[1755910875122,1.90463297,198.64,198.63,7.36244856]
[1755910875426,1.90463297,198.64,198.63,7.36310025]
[1755910875932,1.18463297,198.65,198.63,7.36310025]
[1755910876099,39.1,198.64,198.63,3.65490404]
[1755910876301,39.1,198.64,198.63,7.35529337]
[1755910877094,39.1,198.64,198.63,6.35529337]
[1755910877532,1.90463297,198.66,198.63,6.35529337]
[1755910877728,40.28463297,198.65,198.59,0.03]
[1755910878036,39.1,198.64,198.61,26.0]
[1755910879017,39.1,198.64,198.63,3.65490404]
[1755910879510,39.82,198.64,198.63,3.65490404]
[1755910879824,41.00463297,198.64,198.63,3.65490404]
[1755910879995,41.00463297,198.64,198.62,3.65490404]
[1755910880198,1.90463297,198.63,198.59,0.03]
[1755910880424,1.90463297,198.63,198.62,3.65490404]
[1755910880596,1.90463297,198.63,198.59,0.03]
[1755910880807,1.18463297,198.61,198.6,3.65490404]
[1755910881006,1.90463297,198.61,198.59,0.03]
[1755910881207,0.72,198.6,198.59,3.68490404]
[1755910881399,39.1,198.6,198.59,3.68490404]
[1755910881795,39.82,198.6,198.59,0.03]
[1755910882015,39.82,198.6,198.59,3.68490404]
[1755910882421,41.00463297,198.6,198.59,0.03]
[1755910882628,41.00463297,198.6,198.59,3.68490404]
[1755910882825,41.00463297,198.6,198.59,0.03]
[1755910883022,41.00463297,198.6,198.59,3.68490404]
[1755910883845,41.00463297,198.6,198.59,0.03]
[1755910884045,41.00463297,198.6,198.59,3.68490404]
[1755910884226,41.00463297,198.6,198.59,0.03]
[1755910884632,1.18463297,198.58,198.56,0.03]
[1755910884835,1.18463297,198.58,198.56,3.68490404]
[1755910885041,0.72,198.57,198.56,3.68490404]
[1755910885213,0.72,198.57,198.56,0.03]
[1755910885544,1.18463297,198.54,198.45,0.66290191]
[1755910885754,0.72,198.57,198.51,3.65490404]
[1755910885755,41.00463297,198.53,198.51,3.65490404]
[1755910885982,40.28463297,198.52,198.51,3.65490404]
[1755910886241,1.18463297,198.48,198.47,15.125923]
[1755910886446,1.18463297,198.5,198.47,3.65490404]
[1755910886752,1.18463297,198.5,198.49,3.65490404]
[1755910886922,1.90463297,198.5,198.49,3.65490404]
[1755910887235,1.18463297,198.49,198.47,3.65490404]
[1755910887435,0.71,198.48,198.47,3.65490404]
[1755910887955,39.89,198.48,198.47,3.68490404]
[1755910888247,41.07463297,198.48,198.47,0.03]
[1755910888419,41.07463297,198.48,198.45,0.60290191]
[1755910888420,1.18463297,198.46,198.45,0.60290191]
[1755910888618,41.09463297,198.46,198.45,0.60290191]
[1755910888820,1.89463297,198.46,198.45,3.75780595]
[1755910889026,41.09463297,198.46,198.45,3.75780595]
[1755910889228,41.09463297,198.46,198.45,0.10290191]
[1755910889541,41.11463297,198.46,198.45,3.75780595]
[1755910889744,39.22,198.46,198.45,3.75780595]
[1755910890134,39.22,198.46,198.45,0.10290191]
[1755910890364,39.22,198.46,198.45,3.75780595]
[1755910890540,40.40463297,198.46,198.45,3.75780595]
[1755910891146,40.40463297,198.46,198.45,0.10290191]
[1755910891147,39.22,198.46,198.45,0.10290191]
[1755910891338,39.22,198.46,198.45,3.75780595]
[1755910892652,39.24,198.46,198.45,3.75780595]
[1755910892833,39.24,198.46,198.45,0.19290191]
[1755910893035,39.24,198.46,198.45,3.75780595]
[1755910893346,39.22,198.46,198.45,3.75780595]
[1755910893551,39.22,198.46,198.45,0.10290191]
[1755910893852,39.24,198.46,198.45,3.84780595]
[1755910894057,39.24,198.46,198.45,3.75780595]
[1755910897932,39.2,198.46,198.45,3.75780595]
[1755910898363,39.2,198.46,198.45,0.10290191]
[1755910898536,39.2,198.46,198.45,3.75780595]
[1755910900056,39.2,198.46,198.45,3.78780595]
[1755910900572,39.26,198.46,198.45,3.78780595]
[1755910900742,0.06,198.46,198.45,3.78780595]
[1755910900944,39.24,198.48,198.45,3.87780595]
[1755910901150,39.24,198.48,198.47,3.65490404]
[1755910901570,39.95,198.48,198.47,3.65490404]
[1755910901861,39.95,198.48,198.45,0.13290191]
[1755910902073,1.89463297,198.47,198.45,0.13290191]
[1755910902544,0.71,198.46,198.45,0.13290191]
[1755910902933,1.89463297,198.46,198.45,0.13290191]
[1755910903372,1.18463297,198.47,198.45,3.78780595]
[1755910903678,39.18,198.46,198.45,0.13290191]
[1755910903895,0.06,198.48,198.45,0.13290191]
[1755910904162,0.06,198.48,198.45,0.22290191]
[1755910904344,39.24,198.48,198.45,0.22290191]
[1755910904546,0.06,198.48,198.45,0.22290191]
[1755910904764,39.26,198.48,198.47,3.65490404]
[1755910906263,39.26,198.48,198.47,3.74490404]
[1755910906264,0.06,198.48,198.47,3.74490404]
[1755910906477,0.06,198.48,198.47,3.65490404]
[1755910906669,0.06,198.52,198.5,26.0]
[1755910906850,0.06,198.52,198.51,3.65490404]
[1755910907465,0.06,198.52,198.51,18.77854004]
[1755910908748,0.06,198.52,198.51,22.38667491]
[1755910909477,0.06,198.52,198.51,18.77854004]
[1755910910056,0.06,198.52,198.51,15.123636]
[1755910910277,0.06,198.52,198.51,18.77854004]
[1755910911251,0.06,198.52,198.51,22.38990057]
[1755910911450,0.77,198.52,198.44,0.09]
[1755910911653,0.77,198.52,198.51,3.65490404]
[1755910912269,39.95,198.52,198.51,3.65490404]
[1755910912472,0.77,198.52,198.51,3.65490404]
[1755910912672,39.95,198.52,198.51,3.65490404]
[1755910912874,39.95,198.52,198.47,26.0]
[1755910913074,39.24,198.52,198.51,3.65490404]
[1755910913271,40.42463297,198.52,198.51,3.65490404]
[1755910913663,1.18463297,198.51,198.49,15.125161]
[1755910913974,1.18463297,198.51,198.5,3.65490404]
[1755910914351,1.89463297,198.51,198.5,3.65490404]
[1755910915564,0.71,198.51,198.5,3.65490404]
[1755910915868,41.15463297,198.51,198.5,3.65490404]
[1755910917355,1.89463297,198.51,198.5,3.65490404]
[1755910917558,41.13463297,198.51,198.5,3.65490404]
[1755910917974,39.95,198.51,198.5,3.65490404]
[1755910918172,41.13463297,198.51,198.5,3.65490404]
[1755910919277,39.95,198.51,198.5,3.65490404]
[1755910919581,41.13463297,198.51,198.5,3.65490404]
[1755910921084,41.13463297,198.51,198.46,0.03]
[1755910921279,1.18463297,198.49,198.48,3.65490404]
[1755910921587,1.18463297,198.48,198.47,3.65490404]
[1755910921787,41.14463297,198.48,198.47,3.65490404]
[1755910922084,0.72,198.48,198.47,3.65490404]
[1755910922281,39.26,198.48,198.47,7.28203621]
[1755910922481,39.26,198.48,198.47,3.65490404]
[1755910922482,41.16463297,198.48,198.47,3.65490404]
[1755910922985,39.98,198.48,198.47,3.65490404]
[1755910923189,41.16463297,198.48,198.47,3.65490404]
[1755910923386,41.16463297,198.48,198.47,7.28457029]
[1755910923564,1.18463297,198.5,198.47,7.28457029]
[1755910923768,40.44463297,198.48,198.46,0.03]
[1755910924092,40.44463297,198.48,198.47,3.62952931]
[1755910924291,41.16463297,198.48,198.47,3.62952931]
[1755910925090,41.16463297,198.48,198.47,7.28443335]
[1755910927172,41.16463297,198.48,198.47,7.29118129]
[1755910927391,39.98,198.48,198.47,7.29118129]
[1755910927589,1.90463297,198.48,198.47,7.29118129]
[1755910928089,41.12463297,198.48,198.47,7.29118129]
[1755910928470,40.40463297,198.48,198.47,7.29118129]
[1755910928776,41.12463297,198.48,198.47,7.29118129]
[1755910928980,41.12463297,198.48,198.47,3.63627725]
[1755910929177,41.12463297,198.48,198.47,7.29118129]
[1755910929776,39.94,198.48,198.47,7.29118129]
[1755910930192,41.12463297,198.48,198.47,7.29118129]
[1755910930578,1.90463297,198.48,198.47,7.29118129]
[1755910930778,41.10463297,198.48,198.47,7.29118129]
[1755910931181,39.2,198.48,198.47,7.29118129]
[1755910932189,39.2,198.5,198.49,26.0]
[1755910932403,39.2,198.5,198.49,33.29118129]
[1755910932695,39.22,198.51,198.49,33.38118129]
[1755910932990,39.22,198.51,198.5,7.29118129]
[1755910933368,39.22,198.51,198.5,3.63627725]
[1755910933574,39.22,198.51,198.5,7.29118129]
[1755910933771,39.28,198.51,198.5,7.29118129]
[1755910935098,40.0,198.51,198.5,7.29118129]
[1755910935289,0.78,198.51,198.5,7.29118129]
[1755910935489,39.98,198.51,198.5,7.29118129]
[1755910936314,39.98,198.51,198.5,3.65490404]
[1755910936471,39.98,198.51,198.5,7.26980833]
[1755910936797,41.16463297,198.51,198.5,7.26980833]
[1755910936976,41.16463297,198.51,198.5,7.26998384]
[1755910937396,1.18463297,198.5,198.49,3.65490404]
[1755910937605,1.90463297,198.5,198.49,3.61605997]
[1755910937781,1.18463297,198.48,198.47,3.68490404]
[1755910937974,1.90463297,198.48,198.47,7.30150389]
[1755910938174,41.16463297,198.48,198.47,7.30150389]
[1755910939409,41.16463297,198.48,198.47,7.30143368]
[1755910941299,1.90463297,198.48,198.47,7.30143368]
[1755910941611,41.14463297,198.48,198.47,7.30143368]
[1755910942707,41.12463297,198.48,198.47,7.30143368]
[1755910942890,1.90463297,198.48,198.47,3.64652964]
[1755910943213,41.12463297,198.48,198.47,7.30143368]
[1755910945138,41.12463297,198.48,198.47,3.64652964]
[1755910945435,41.12463297,198.48,198.47,7.30128848]
[1755910947095,41.12463297,198.48,198.47,3.68490404]
[1755910947699,41.12463297,198.48,198.47,7.30105217]
[1755910948214,41.08463297,198.48,198.47,7.30105217]
[1755910948399,41.08463297,198.48,198.47,7.30083483]
[1755910949201,41.08463297,198.48,198.47,7.30063863]
[1755910949412,1.90463297,198.48,198.47,7.30063863]
[1755910949619,41.08463297,198.48,198.47,7.30063863]
[1755910951429,41.06463297,198.48,198.47,7.30063863]
[1755910952621,40.34463297,198.48,198.47,7.30063863]
[1755910952796,40.34463297,198.48,198.47,3.64573459]
[1755910952993,41.02463297,198.48,198.47,7.30063863]
[1755910954323,40.34463297,198.48,198.47,3.68490404]
[1755910954623,40.34463297,198.48,198.47,7.30204183]
[1755910956910,40.32463297,198.48,198.47,7.30204183]
[1755910957120,41.00463297,198.48,198.47,7.30204183]
[1755910957309,40.32463297,198.48,198.47,7.30204183]
[1755910957629,41.00463297,198.48,198.47,7.30204183]
[1755910958717,39.14,198.48,198.47,7.30204183]
[1755910963338,39.14,198.48,198.47,3.68490404]
[1755910963639,39.14,198.48,198.47,7.3048249]
[1755910966025,41.00463297,198.48,198.47,2.92992086]
[1755910969216,41.00463297,198.48,198.46,3.68490404]
[1755910969423,0.68,198.47,198.46,3.68490404]
[1755910969616,0.68,198.47,198.46,0.03]
[1755910969918,1.86463297,198.47,198.46,0.03]
[1755910970323,41.00463297,198.47,198.46,0.03]
[1755910970525,41.00463297,198.47,198.46,3.68490404]
[1755910971623,41.00463297,198.47,198.46,0.03]
[1755910971835,41.00463297,198.47,198.46,3.68490404]
[1755910972038,40.32463297,198.47,198.46,3.68490404]
[1755910972212,41.00463297,198.47,198.46,0.03]
[1755910973645,41.28895611,198.47,198.46,0.03]
[1755910974346,1.18463297,198.46,198.45,0.13290191]
[1755910974517,15.06455012,198.46,198.45,0.13290191]
[1755910974719,41.10463297,198.46,198.45,3.78780595]
[1755910975342,39.24,198.46,198.45,3.78780595]
[1755910975543,39.24,198.46,198.45,4.50780595]
[1755910975718,1.18463297,198.48,198.45,4.50780595]
[1755910976067,40.48463297,198.5,198.47,3.65490404]
[1755910976346,40.48463297,198.5,198.49,3.65490404]
[1755910976938,41.16463297,198.5,198.49,3.65490404]
[1755910977861,41.16463297,198.5,198.45,0.85290191]
[1755910978039,40.48463297,198.5,198.49,3.65490404]
[1755910978226,39.3,198.5,198.49,7.25206382]
[1755910978626,40.48463297,198.5,198.49,7.25206382]
[1755910979337,39.3,198.5,198.49,7.25206382]
[1755910979526,39.3,198.5,198.49,3.59715978]
[1755910979726,40.48463297,198.5,198.49,7.25206382]
[1755910980359,0.06,198.51,198.49,7.91206382]
[1755910980540,0.06,198.52,198.51,33.30980808]
[1755910980737,0.06,198.52,198.51,36.90696786]
[1755910980949,0.06,198.52,198.51,37.56696786]
[1755910981264,0.06,198.54,198.52,7.30980808]
[1755910981440,0.06,198.54,198.53,7.42662424]
[1755910981766,0.06,198.54,198.53,8.08690872]
[1755910983580,0.06,198.54,198.53,8.07998229]
[1755910987847,0.06,198.54,198.53,4.42507825]
[1755910988169,0.06,198.54,198.53,8.07998229]
[1755910988350,1.18463297,198.58,198.55,26.0]
[1755910988543,1.18463297,198.58,198.57,3.65490404]
[1755910988741,40.44463297,198.61,198.57,7.41998229]
[1755910988960,1.87463297,198.63,198.6,3.65490404]
[1755910989262,1.18463297,198.63,198.62,3.65490404]
[1755910989479,1.87463297,198.63,198.62,3.65490404]
[1755910990537,0.69,198.63,198.62,3.65490404]
[1755910990867,1.87463297,198.63,198.62,3.65490404]
[1755910992841,1.87463297,198.63,198.58,0.66]
[1755910993185,1.18463297,198.63,198.62,3.65490404]
[1755910993972,1.87463297,198.63,198.62,3.65490404]
[1755910997345,1.18463297,198.63,198.62,3.65490404]
[1755910997553,0.69,198.64,198.62,3.65490404]
[1755910997754,1.87463297,198.63,198.58,0.66]
[1755910997955,1.87463297,198.63,198.59,4.40502857]
[1755910998257,1.87463297,198.63,198.59,0.66]
[1755910998663,1.18463297,198.63,198.59,0.66]
[1755910998973,1.18463297,198.63,198.62,3.65490404]
[1755911000688,0.06,198.65,198.62,4.31490404]
[1755911000972,0.06,198.65,198.64,3.65490404]
[1755911005449,1.93463297,198.65,198.6,26.0]
[1755911005676,1.24463297,198.65,198.64,3.65490404]
[1755911006350,0.06,198.65,198.64,3.65490404]
[1755911006559,1.24463297,198.65,198.6,26.0]
[1755911006750,1.24463297,198.65,198.64,3.65490404]
[1755911007158,1.96463297,198.65,198.64,3.65490404]
[1755911007867,1.96463297,198.65,198.6,26.71]
[1755911008072,1.96463297,198.65,198.64,3.65490404]
[1755911008577,1.24463297,198.65,198.64,3.65490404]
[1755911008761,0.06,198.65,198.64,3.65490404]
[1755911008969,1.24463297,198.65,198.64,3.65490404]
[1755911009168,1.96463297,198.65,198.6,26.0]
[1755911009360,1.96463297,198.65,198.64,3.65490404]
[1755911009361,1.24463297,198.65,198.64,3.65490404]
[1755911010081,1.18463297,198.63,198.56,0.71]
[1755911010284,1.90463297,198.62,198.57,3.73711787]
[1755911010580,0.72,198.61,198.6,26.0]
[1755911010762,0.72,198.61,198.57,26.0]
[1755911010970,0.72,198.61,198.58,3.73681766]
[1755911011165,0.72,198.61,198.57,26.0]
[1755911011366,0.72,198.61,198.6,3.65490404]
[1755911012463,1.18463297,198.62,198.6,3.65490404]
[1755911012662,1.90463297,198.62,198.6,3.65490404]
[1755911012859,0.72,198.61,198.57,26.0]
[1755911013064,1.18463297,198.62,198.6,3.65490404]
[1755911013279,1.18463297,198.62,198.61,3.65490404]
[1755911014064,1.90463297,198.62,198.61,3.65490404]
[1755911014395,1.90463297,198.62,198.57,26.0]
[1755911014604,1.18463297,198.62,198.61,3.65490404]
[1755911015102,1.18463297,198.58,198.53,0.03]
[1755911015280,1.18463297,198.56,198.55,3.65490404]
[1755911015679,0.72,198.56,198.55,3.65490404]
[1755911015983,1.90463297,198.56,198.55,3.65490404]
[1755911017174,1.18463297,198.56,198.55,3.65490404]
[1755911017377,1.90463297,198.56,198.55,3.65490404]
[1755911017581,1.90463297,198.56,198.55,7.40300686]
[1755911022094,1.18463297,198.56,198.55,7.40300686]
[1755911022980,1.18463297,198.56,198.55,7.41517976]
[1755911025999,1.18463297,198.56,198.55,3.65490404]
[1755911026201,1.18463297,198.56,198.55,7.4188293]
[1755911028182,1.18463297,198.57,198.55,8.1288293]
[1755911028392,1.18463297,198.57,198.56,8.1288293]
[1755911028582,1.18463297,198.57,198.56,7.4188293]
[1755911029279,43.05922718,198.64,198.59,26.0]
[1755911029280,7.418829,198.64,198.59,26.0]
[1755911029497,7.418829,198.64,198.63,3.65490404]
[1755911029498,1.18463297,198.64,198.63,3.65490404]
[1755911029814,1.18463297,198.64,198.63,3.76311937]
[1755911029974,1.90463297,198.64,198.63,7.41802341]
[1755911032572,1.18463297,198.64,198.63,7.41802341]
[1755911033904,1.90463297,198.64,198.63,7.41802341]
[1755911034283,1.96463297,198.64,198.63,7.41802341]
[1755911034497,1.24463297,198.64,198.63,7.41802341]
[1755911035203,0.06,198.64,198.63,3.76341965]
[1755911035401,0.06,198.64,198.63,7.41832369]
[1755911035402,1.96463297,198.64,198.63,7.41832369]
[1755911035602,1.96463297,198.64,198.63,7.41829572]
[1755911035783,1.96463297,198.64,198.63,3.76339168]
[1755911035985,1.18463297,198.63,198.56,0.71]
[1755911036206,0.72,198.62,198.61,3.65490404]
[1755911036379,1.90463297,198.62,198.61,3.65490404]
[1755911038285,41.04463297,198.62,198.61,3.65490404]
[1755911038629,41.04463297,198.62,198.6,3.65490404]
[1755911038796,40.32463297,198.62,198.6,3.65490404]
[1755911039110,0.66,198.61,198.6,3.65490404]
[1755911039305,1.84463297,198.61,198.6,7.41878968]
[1755911043104,1.84463297,198.61,198.6,3.65490404]
[1755911043301,1.84463297,198.61,198.6,7.41837129]
[1755911043632,1.18463297,198.61,198.6,7.41837129]
[1755911043814,1.18463297,198.61,198.6,7.41859255]
[1755911044201,40.32463297,198.62,198.6,8.11859255]
[1755911044516,40.32463297,198.62,198.61,7.41859255]
[1755911044695,40.32463297,198.62,198.61,3.76368851]
[1755911044896,40.32463297,198.62,198.61,7.41859255]
[1755911047025,39.14,198.62,198.61,8.11859255]
[1755911048195,40.32463297,198.62,198.61,8.11859255]
[1755911048402,40.32463297,198.62,198.61,7.41859255]
[1755911048595,40.32463297,198.62,198.61,3.76368851]
[1755911048803,40.32463297,198.62,198.61,7.41859255]
[1755911049210,40.32463297,198.62,198.61,7.41983787]
[1755911049918,40.98463297,198.62,198.61,7.41983787]
[1755911052224,40.98463297,198.62,198.61,7.42217263]
[1755911053011,40.98463297,198.62,198.61,7.42234838]
[1755911058040,40.98463297,198.62,198.61,3.76744434]
[1755911058820,0.06,198.64,198.61,34.12234838]
[1755911059019,0.06,198.64,198.63,3.65490404]
[1755911059230,0.06,198.64,198.63,7.42234838]
[1755911060412,0.06,198.64,198.63,5.78260834]
[1755911060626,0.06,198.64,198.63,9.43751238]
[1755911060804,0.72,198.64,198.63,3.76744434]
[1755911061334,0.72,198.64,198.63,3.76532816]
[1755911061536,0.72,198.64,198.63,3.04532816]
[1755911062732,18.25482119,198.64,198.63,3.04532816]
[1755911062945,13.87991715,198.63,198.57,3.65490404]
[1755911063150,39.38,198.62,198.57,3.65490404]
[1755911063554,0.94432314,198.61,198.57,3.65490404]
[1755911063729,0.28432314,198.61,198.57,3.65490404]
[1755911063929,0.66,198.6,198.57,3.65490404]
[1755911064459,0.28432314,198.59,198.55,0.03]
[1755911064826,0.66,198.58,198.55,0.03]
[1755911065038,39.38,198.57,198.55,0.03]
[1755911065430,0.66,198.56,198.55,0.03]
[1755911065632,0.66,198.56,198.55,3.68490404]
[1755911067037,40.02,198.56,198.55,3.68490404]
[1755911067344,39.36,198.56,198.55,3.68490404]
[1755911067545,40.08,198.56,198.55,3.68490404]
[1755911068050,40.08,198.56,198.55,0.03]
[1755911068051,40.36432314,198.56,198.55,0.03]
[1755911068549,53.95991715,198.56,198.55,0.03]
[1755911069352,57.61482119,198.56,198.55,0.03]
[1755911070645,59.63191619,198.56,198.55,0.03]
[1755911071736,16.61701215,198.56,198.55,0.03]
[1755911071930,42.36141814,198.56,198.55,0.03]
[1755911072122,3.02141814,198.56,198.55,0.03]
[1755911072327,39.36,198.56,198.55,3.68490404]
[1755911072828,39.36,198.56,198.55,4.35490404]
[1755911073028,39.4,198.56,198.55,4.35490404]
[1755911073672,39.4,198.56,198.55,8.11514976]
[1755911074156,39.4,198.56,198.55,7.44514976]
[1755911074731,39.4,198.56,198.55,8.11514976]
[1755911074944,39.4,198.56,198.55,7.44514976]
[1755911077358,40.40432314,198.56,198.55,3.79024572]
[1755911077529,47.84947314,198.56,198.55,3.79024572]
[1755911078165,61.44506715,198.56,198.55,0.03]
[1755911080059,65.09997119,198.56,198.55,0.03]
[1755911085941,13.59559401,198.52,198.51,0.03]
[1755911086145,82.89482119,198.52,198.51,0.03]
[1755911086364,83.61482119,198.52,198.51,0.03]
[1755911086669,85.63293319,198.52,198.51,0.03]
[1755911089771,46.13077162,198.52,198.51,0.03]
[1755911090064,85.65293319,198.52,198.51,0.03]
[1755911090572,85.51077162,198.52,198.51,0.03]
[1755911091060,46.13077162,198.52,198.51,0.03]
[1755911091268,85.65293319,198.52,198.51,0.03]
[1755911091469,85.36861005,198.52,198.51,0.03]
[1755911091839,85.51077162,198.52,198.51,0.03]
[1755911092142,85.65293319,198.52,198.51,0.03]
[1755911093992,85.63293319,198.52,198.51,0.03]
[1755911094944,85.61293319,198.52,198.51,0.03]
[1755911096454,46.27293319,198.52,198.51,0.03]
[1755911096651,85.61293319,198.52,198.51,0.03]
[1755911098484,81.23802915,198.52,198.51,0.03]
[1755911098786,84.89293319,198.52,198.51,0.03]
[1755911099478,85.57293319,198.52,198.51,0.03]
[1755911100057,84.89293319,198.52,198.51,0.03]
[1755911100260,13.59559401,198.56,198.51,4.40490404]
[1755911100467,39.34,198.55,198.52,0.72]
[1755911100764,39.95490404,198.58,198.52,0.72]
[1755911100968,13.59559401,198.56,198.52,0.72]
[1755911101187,39.34,198.55,198.52,0.72]
[1755911101351,39.34,198.55,198.53,0.72]
[1755911101852,0.14216157,198.54,198.53,0.72]
[1755911102269,0.28432314,198.54,198.53,0.72]
[1755911104982,0.28432314,198.54,198.51,0.75]
[1755911105284,13.59559401,198.56,198.52,0.72]
[1755911105285,39.60432314,198.53,198.52,0.72]
[1755911105464,39.60432314,198.53,198.51,3.68490404]
[1755911105669,39.60432314,198.53,198.52,0.72]
[1755911105872,0.28432314,198.53,198.52,0.72]
[1755911106175,39.58432314,198.53,198.52,0.72]
[1755911106556,39.3,198.53,198.52,4.37490404]
[1755911106758,36.36,198.58,198.52,8.12638276]
[1755911106759,115.36,198.58,198.52,8.12638276]
[1755911106952,39.3,198.57,198.54,3.65490404]
[1755911107183,39.3,198.57,198.55,0.72]
[1755911107367,39.3,198.57,198.54,3.65490404]
[1755911107569,39.3,198.57,198.56,0.72]
[1755911108089,39.58432314,198.57,198.56,0.72]
[1755911108398,39.3,198.57,198.56,0.72]
[1755911108787,36.36,198.58,198.56,0.72]
[1755911109092,39.28,198.57,198.56,0.72]
[1755911109281,39.28,198.57,198.55,3.65490404]
[1755911109980,39.28,198.57,198.51,0.03]
[1755911109981,36.36,198.58,198.56,8.12905071]
[1755911110181,36.36,198.58,198.57,8.12905071]
[1755911110401,75.62,198.58,198.57,8.12905071]
[1755911110692,75.62,198.58,198.57,4.47414667]
[1755911110989,75.62,198.58,198.57,8.12905071]
[1755911114175,39.32,198.58,198.57,8.12905071]
[1755911114373,0.06,198.58,198.57,8.12905071]
[1755911114576,0.06,198.6,198.59,26.0]
[1755911114775,39.28,198.62,198.59,33.40905071]
[1755911114987,39.28,198.62,198.61,3.65490404]
[1755911115184,39.28,198.62,198.61,7.40511022]
[1755911115386,39.28,198.62,198.61,8.00511022]
[1755911115779,39.28,198.62,198.61,8.0028807]
[1755911117095,39.28,198.62,198.61,23.1196587]
[1755911122321,0.06,198.62,198.61,23.1196587]
[1755911122494,0.06,198.63,198.61,23.1196587]
[1755911122818,0.06,198.64,198.62,34.0028807]
[1755911123015,0.06,198.64,198.63,7.4028807]
[1755911123313,0.06,198.64,198.63,8.0028807]
[1755911123519,0.06,198.66,198.63,8.0028807]
[1755911123728,0.06,198.66,198.64,3.74797666]
[1755911123890,0.06,198.66,198.64,34.0028807]
[1755911124089,0.06,198.66,198.64,33.98691161]
[1755911125101,0.06,198.66,198.64,36.00207561]
[1755911126197,0.06,198.66,198.65,7.38691161]
[1755911126509,0.06,198.66,198.65,11.64181565]
[1755911126695,0.06,198.67,198.65,11.64181565]
[1755911127015,0.06,198.67,198.66,29.73200757]
[1755911127217,0.06,198.67,198.66,33.38691161]
[1755911128911,0.06,198.67,198.66,7.37736104]
[1755911130708,0.78,198.67,198.66,3.65490404]
[1755911130911,0.78,198.67,198.66,5.66996604]
[1755911131210,0.78,198.67,198.66,3.65490404]
[1755911132102,0.78,198.67,198.65,2.015164]
[1755911132320,0.78,198.67,198.66,3.65490404]
[1755911135216,0.78,198.67,198.64,3.65490404]
[1755911136025,0.78,198.67,198.64,3.68490404]
[1755911137401,4.71922718,198.67,198.64,0.03]
[1755911137821,4.37490404,198.66,198.64,0.03]
[1755911138024,39.14,198.65,198.64,0.03]
[1755911138227,39.86,198.65,198.64,0.03]
[1755911138412,39.86,198.65,198.64,3.68490404]
[1755911139533,39.88,198.65,198.64,3.68490404]
[1755911141260,39.88,198.65,198.64,7.42027834]
[1755911142112,39.88,198.65,198.64,7.42234261]
[1755911142722,39.88,198.65,198.64,7.42279386]
[1755911143816,39.88,198.65,198.64,3.76788982]
[1755911144137,39.88,198.65,198.64,7.42279386]
[1755911144638,0.72,198.65,198.64,7.42279386]
[1755911144841,39.88,198.65,198.64,7.42279386]
[1755911151053,39.88,198.65,198.64,3.76788982]
[1755911151255,39.88,198.65,198.64,7.44065777]
[1755911151850,39.88,198.65,198.64,7.44097418]
[1755911152050,39.88,198.65,198.64,3.78607014]
[1755911152258,39.88,198.65,198.64,7.44097418]
[1755911156544,39.88,198.65,198.64,3.78607014]
[1755911157850,0.72,198.66,198.64,7.44097418]
[1755911158053,0.06,198.67,198.65,3.75607014]
[1755911158379,0.06,198.67,198.66,3.75607014]
[1755911158380,26.34432314,198.67,198.66,3.75607014]
[1755911158676,27.06432314,198.67,198.66,3.75607014]
[1755911159050,66.22432314,198.67,198.66,3.75607014]
[1755911160144,66.22432314,198.67,198.65,3.65490404]
[1755911160346,0.72,198.66,198.65,3.65490404]
[1755911160671,0.72,198.66,198.65,7.42287443]
[1755911160866,0.72,198.66,198.65,7.42287459]
[1755911161070,0.72,198.66,198.65,7.42273962]
[1755911163168,0.72,198.66,198.65,3.76783558]
[1755911164871,65.50432314,198.67,198.65,3.76783558]
[1755911165071,0.72,198.66,198.64,3.68490404]
[1755911165274,39.14,198.65,198.64,3.68490404]